[Event "2026 Biel Blitz Open"]
[Site "Biel, CH"]
[Date "2026.07.19"]
[Round "1"]
[White "Bu, Xiangzhi"]
[Black "Heitmann, Erik"]
[Result "1-0"]
[Board "1"]
[TimeControl "180+2"]
[WhiteFideId "8601445"]
[BlackFideId "34608940"]
[WhiteElo "2719"]
[BlackElo "1885"]
[WhiteTitle "GM"]
[WhiteClock "0:01:40"]
[BlackClock "0:00:04"]
[Variant "Standard"]
[EndDate "2026.07.19"]
[EndTime "11:47:32"]

1. Nf3 {[%clk 0:03:03]}  Nf6 {[%clk 0:03:03]} 2. c4 {[%clk 0:03:04]}  e6 {[%clk 0:02:54]} 3. g3 {[%clk 0:03:05]}  d5 {[%clk 0:02:47]}
4. Bg2 {[%clk 0:03:06]}  c6 {[%clk 0:02:48]} 5. O-O {[%clk 0:03:05]}  Be7 {[%clk 0:02:43]} 6. b3 {[%clk 0:03:06]}  O-O {[%clk 0:02:43]}
7. Bb2 {[%clk 0:03:06]}  Re8 {[%clk 0:02:30]} 8. d3 {[%clk 0:03:03]}  Nbd7 {[%clk 0:02:30]} 9. Nbd2 {[%clk 0:03:04]}  Nf8 {[%clk 0:02:30]}
10. e4 {[%clk 0:03:03]}  dxe4 {[%clk 0:02:24]} 11. dxe4 {[%clk 0:03:03]}  Ng6 {[%clk 0:02:18]} 12. e5 {[%clk 0:03:01]}  Nd7 {[%clk 0:02:18]}
13. Ne4 {[%clk 0:02:54]}  Qc7 {[%clk 0:02:12]} 14. Qd4 {[%clk 0:02:41]}  c5 {[%clk 0:02:02]} 15. Qc3 {[%clk 0:02:39]}  b6 {[%clk 0:01:53]}
16. Nd6 {[%clk 0:02:34]}  Rf8 {[%clk 0:01:44]} 17. Rad1 {[%clk 0:02:32]}  f6 {[%clk 0:01:25]} 18. Ng5 {[%clk 0:02:13]}  Ndxe5 {[%clk 0:01:00]}
19. Nxc8 {[%clk 0:02:01]}  Qxc8 {[%clk 0:00:56]} 20. Nxe6 {[%clk 0:02:01]}  Re8 {[%clk 0:00:38]} 21. Bxa8 {[%clk 0:02:00]}  Qxa8 {[%clk 0:00:34]}
22. f4 {[%clk 0:02:01]}  Nc6 {[%clk 0:00:12]} 23. Nc7 {[%clk 0:02:01]}  Qc8 {[%clk 0:00:13]} 24. Nxe8 {[%clk 0:02:01]}  Qxe8 {[%clk 0:00:14]}
25. Qe3 {[%clk 0:01:58]}  Qc8 {[%clk 0:00:08]} 26. Rfe1 {[%clk 0:01:58]}  Kf7 {[%clk 0:00:07]} 27. Qe4 {[%clk 0:01:56]}  f5 {[%clk 0:00:06]}
28. Qd5+ {[%clk 0:01:57]}  Kf8 {[%clk 0:00:04]} 29. Re6 {[%clk 0:01:57]}  Nd8 {[%clk 0:00:04]} 30. Qxf5+ {[%clk 0:01:49]}  Kg8 {[%clk 0:00:05]}
31. Rxe7 {[%clk 0:01:39]}  Nxe7 {[%clk 0:00:03]} 32. Qxc8 {[%clk 0:01:40]}  Nxc8 {[%clk 0:00:04]} 33. Rxd8+ {[%clk 0:01:40]} 1-0

[Event "2026 Biel Blitz Open"]
[Site "Biel, CH"]
[Date "2026.07.19"]
[Round "1"]
[White "Materia, Matteo"]
[Black "Safarli, Eltaj"]
[Result "0-1"]
[Board "2"]
[TimeControl "180+2"]
[WhiteFideId "45150575"]
[BlackFideId "13402129"]
[WhiteElo "1881"]
[BlackElo "2619"]
[BlackTitle "GM"]
[WhiteClock "0:00:13"]
[BlackClock "0:02:11"]
[Variant "Standard"]
[EndDate "2026.07.19"]
[EndTime "11:47:32"]

1. Nf3 {[%clk 0:03:02]}  Nf6 {[%clk 0:03:03]} 2. d4 {[%clk 0:03:03]}  g6 {[%clk 0:03:04]} 3. g3 {[%clk 0:03:05]}  Bg7 {[%clk 0:03:05]}
4. Bg2 {[%clk 0:03:05]}  O-O {[%clk 0:03:05]} 5. O-O {[%clk 0:03:06]}  d5 {[%clk 0:03:06]} 6. b3 {[%clk 0:03:05]}  a5 {[%clk 0:03:05]}
7. a4 {[%clk 0:03:06]}  c6 {[%clk 0:03:02]} 8. Bb2 {[%clk 0:03:06]}  Bf5 {[%clk 0:03:03]} 9. Nbd2 {[%clk 0:03:06]}  Ne4 {[%clk 0:03:01]}
10. Ne5 {[%clk 0:03:03]}  Na6 {[%clk 0:02:54]} 11. Nxe4 {[%clk 0:02:57]}  Bxe4 {[%clk 0:02:55]} 12. f3 {[%clk 0:02:58]}  Bf5 {[%clk 0:02:56]}
13. e4 {[%clk 0:02:58]}  Be6 {[%clk 0:02:55]} 14. Qe2 {[%clk 0:02:51]}  Qb6 {[%clk 0:02:42]} 15. Kh1 {[%clk 0:02:49]}  Rfd8 {[%clk 0:02:43]}
16. Rad1 {[%clk 0:02:31]}  Rac8 {[%clk 0:02:42]} 17. Ba1 {[%clk 0:02:10]}  c5 {[%clk 0:02:33]} 18. dxc5 {[%clk 0:02:09]}  Qxc5 {[%clk 0:02:34]}
19. Rd2 {[%clk 0:01:14]}  dxe4 {[%clk 0:02:34]} 20. Rxd8+ {[%clk 0:01:14]}  Rxd8 {[%clk 0:02:35]} 21. Qxe4 {[%clk 0:01:14]}  Bf5 {[%clk 0:02:25]}
22. Qxb7 {[%clk 0:01:09]}  Bxe5 {[%clk 0:02:26]} 23. Bxe5 {[%clk 0:01:06]}  Qxe5 {[%clk 0:02:27]} 24. Qxa6 {[%clk 0:01:07]}  Bxc2 {[%clk 0:02:22]}
25. Qc4 {[%clk 0:00:52]}  Bd3 {[%clk 0:02:20]} 26. f4 {[%clk 0:00:15]}  Bxc4 {[%clk 0:02:19]} 27. fxe5 {[%clk 0:00:16]}  Bxf1 {[%clk 0:02:20]}
28. Bxf1 {[%clk 0:00:17]}  e6 {[%clk 0:02:18]} 29. Bc4 {[%clk 0:00:18]}  Rd1+ {[%clk 0:02:17]} 30. Kg2 {[%clk 0:00:19]}  Re1 {[%clk 0:02:18]}
31. Kf3 {[%clk 0:00:15]}  Rxe5 {[%clk 0:02:19]} 32. h4 {[%clk 0:00:16]}  h5 {[%clk 0:02:19]} 33. Kf4 {[%clk 0:00:17]}  Rc5 {[%clk 0:02:20]}
34. Ke4 {[%clk 0:00:18]}  Kf8 {[%clk 0:02:21]} 35. Kd4 {[%clk 0:00:19]}  Rc7 {[%clk 0:02:20]} 36. Ke5 {[%clk 0:00:19]}  Ke7 {[%clk 0:02:21]}
37. Kf4 {[%clk 0:00:14]}  Kd6 {[%clk 0:02:18]} 38. g4 {[%clk 0:00:15]}  e5+ {[%clk 0:02:17]} 39. Kg5 {[%clk 0:00:16]}  hxg4 {[%clk 0:02:16]}
40. Kxg4 {[%clk 0:00:17]}  Rxc4+ {[%clk 0:02:16]} 41. bxc4 {[%clk 0:00:17]}  Kc5 {[%clk 0:02:18]} 42. Kg5 {[%clk 0:00:16]}  e4 {[%clk 0:02:18]}
43. Kf4 {[%clk 0:00:14]}  Kd4 {[%clk 0:02:11]} 44. c5 {[%clk 0:00:15]}  e3 {[%clk 0:02:08]} 45. c6 {[%clk 0:00:11]}  e2 {[%clk 0:02:09]}
46. c7 {[%clk 0:00:12]}  e1=Q {[%clk 0:02:09]} 47. c8=Q {[%clk 0:00:13]}  Qe3 {[%clk 0:02:10]} 48. Kg4 {[%clk 0:00:13]}  f5 {[%clk 0:02:11]} 0-1

[Event "2026 Biel Blitz Open"]
[Site "Biel, CH"]
[Date "2026.07.19"]
[Round "1"]
[White "Amonatov, Farrukh"]
[Black "Hirt, Markus"]
[Result "1-0"]
[Board "3"]
[TimeControl "180+2"]
[WhiteFideId "14700077"]
[BlackFideId "1302582"]
[WhiteElo "2585"]
[BlackElo "1880"]
[WhiteTitle "GM"]
[WhiteClock "0:00:51"]
[BlackClock "0:00:27"]
[Variant "Standard"]
[EndDate "2026.07.19"]
[EndTime "11:47:32"]

1. e4 {[%clk 0:03:01]}  Nf6 {[%clk 0:03:04]} 2. e5 {[%clk 0:03:03]}  Nd5 {[%clk 0:03:05]} 3. d4 {[%clk 0:03:04]}  d6 {[%clk 0:03:06]}
4. c4 {[%clk 0:03:05]}  Nb6 {[%clk 0:03:07]} 5. f4 {[%clk 0:03:06]}  g6 {[%clk 0:03:06]} 6. Nc3 {[%clk 0:03:07]}  Bg7 {[%clk 0:03:07]}
7. Be3 {[%clk 0:03:08]}  Be6 {[%clk 0:03:07]} 8. d5 {[%clk 0:03:03]}  Bc8 {[%clk 0:03:06]} 9. c5 {[%clk 0:03:03]}  N6d7 {[%clk 0:03:00]}
10. Nf3 {[%clk 0:02:53]}  O-O {[%clk 0:02:49]} 11. Bc4 {[%clk 0:02:42]}  Nxc5 {[%clk 0:02:45]} 12. O-O {[%clk 0:02:39]}  c6 {[%clk 0:02:43]}
13. Rc1 {[%clk 0:02:23]}  Bg4 {[%clk 0:02:37]} 14. Bxc5 {[%clk 0:02:21]}  dxc5 {[%clk 0:02:37]} 15. h3 {[%clk 0:02:16]}  Bxf3 {[%clk 0:02:36]}
16. Qxf3 {[%clk 0:02:16]}  cxd5 {[%clk 0:02:18]} 17. Bxd5 {[%clk 0:02:13]}  Nc6 {[%clk 0:02:16]} 18. Bxc6 {[%clk 0:02:12]}  bxc6 {[%clk 0:02:17]}
19. Rfd1 {[%clk 0:02:06]}  Qb6 {[%clk 0:02:15]} 20. Na4 {[%clk 0:02:06]}  Qb4 {[%clk 0:01:59]} 21. b3 {[%clk 0:02:06]}  Rad8 {[%clk 0:01:50]}
22. Rc4 {[%clk 0:02:04]}  Qa3 {[%clk 0:01:32]} 23. Nxc5 {[%clk 0:01:43]}  Qxa2 {[%clk 0:01:20]} 24. Nd7 {[%clk 0:01:42]}  Rfe8 {[%clk 0:01:17]}
25. Rxc6 {[%clk 0:01:25]}  Qa5 {[%clk 0:01:06]} 26. Kh2 {[%clk 0:01:21]}  Rc8 {[%clk 0:01:02]} 27. Nc5 {[%clk 0:01:10]}  Rxc6 {[%clk 0:00:57]}
28. Qxc6 {[%clk 0:01:11]}  Rb8 {[%clk 0:00:44]} 29. e6 {[%clk 0:01:08]}  f5 {[%clk 0:00:40]} 30. Rd7 {[%clk 0:01:02]}  Bf6 {[%clk 0:00:37]}
31. Qd5 {[%clk 0:00:51]}  Qe1 {[%clk 0:00:31]} 32. Rd8+ {[%clk 0:00:49]}  Rxd8 {[%clk 0:00:33]} 33. Qxd8+ {[%clk 0:00:50]}  Kg7 {[%clk 0:00:34]}
34. Nd7 {[%clk 0:00:51]}  Qxe6 {[%clk 0:00:27]} 35. Qf8# {[%clk 0:00:51]} 1-0

[Event "2026 Biel Blitz Open"]
[Site "Biel, CH"]
[Date "2026.07.19"]
[Round "1"]
[White "Ghosh, Diptayan"]
[Black "Valsecchi, Luca"]
[Result "1-0"]
[Board "5"]
[TimeControl "180+2"]
[WhiteFideId "5045207"]
[BlackFideId "1368524"]
[WhiteElo "2530"]
[BlackElo "1869"]
[WhiteTitle "GM"]
[WhiteClock "0:01:16"]
[BlackClock "0:03:02"]
[Variant "Standard"]
[EndDate "2026.07.19"]
[EndTime "11:47:32"]

1. Nf3 {[%clk 0:03:01]}  d5 {[%clk 0:03:03]} 2. e3 {[%clk 0:03:02]}  Nf6 {[%clk 0:03:00]} 3. c4 {[%clk 0:03:03]}  e6 {[%clk 0:03:02]}
4. Nc3 {[%clk 0:03:03]}  Be7 {[%clk 0:02:56]} 5. b3 {[%clk 0:03:03]}  O-O {[%clk 0:02:52]} 6. Bb2 {[%clk 0:03:04]}  b6 {[%clk 0:02:51]}
7. cxd5 {[%clk 0:03:02]}  exd5 {[%clk 0:02:49]} 8. d4 {[%clk 0:03:03]}  Bb7 {[%clk 0:02:39]} 9. Bd3 {[%clk 0:03:02]}  Nbd7 {[%clk 0:02:37]}
10. O-O {[%clk 0:03:01]}  a6 {[%clk 0:02:27]} 11. Rc1 {[%clk 0:03:00]}  c5 {[%clk 0:02:04]} 12. Ne2 {[%clk 0:02:58]}  Rc8 {[%clk 0:01:53]}
13. Ng3 {[%clk 0:02:58]}  Bd6 {[%clk 0:01:33]} 14. Qe2 {[%clk 0:02:53]}  a5 {[%clk 0:01:01]} 15. Rfd1 {[%clk 0:02:47]}  cxd4 {[%clk 0:00:55]}
16. Nxd4 {[%clk 0:02:43]}  Nc5 {[%clk 0:00:45]} 17. Bb5 {[%clk 0:02:34]}  Qe7 {[%clk 0:00:30]} 18. Ndf5 {[%clk 0:02:19]}  Qe6 {[%clk 0:00:29]}
19. Nxg7 {[%clk 0:02:12]}  Kxg7 {[%clk 0:00:15]} 20. Nh5+ {[%clk 0:02:12]}  Kg6 {[%clk 0:00:09]} 21. Nxf6 {[%clk 0:02:09]}  Be5 {[%clk 0:00:09]}
22. Bxe5 {[%clk 0:01:33]}  Qxe5 {[%clk 0:00:09]} 23. Ng4 {[%clk 0:01:33]}  Qh5 {[%clk 0:00:07]} 24. f3 {[%clk 0:01:16]}  Rcd8 {[%clk 0:00:07]} 1-0

[Event "2026 Biel Blitz Open"]
[Site "Biel, CH"]
[Date "2026.07.19"]
[Round "1"]
[White "Draude, Theo"]
[Black "Gloeckler, Christian"]
[Result "0-1"]
[Board "6"]
[TimeControl "180+2"]
[WhiteFideId "34623809"]
[BlackFideId "34608966"]
[WhiteElo "1861"]
[BlackElo "2513"]
[BlackTitle "IM"]
[WhiteClock "0:00:04"]
[BlackClock "0:01:11"]
[Variant "Standard"]
[EndDate "2026.07.19"]
[EndTime "11:47:32"]

1. e4 {[%clk 0:03:03]}  c5 {[%clk 0:03:04]} 2. Nf3 {[%clk 0:03:04]}  d6 {[%clk 0:03:05]} 3. d4 {[%clk 0:03:05]}  cxd4 {[%clk 0:03:07]}
4. Nxd4 {[%clk 0:03:06]}  Nf6 {[%clk 0:03:08]} 5. Nc3 {[%clk 0:03:08]}  a6 {[%clk 0:03:09]} 6. Bg5 {[%clk 0:03:08]}  Nbd7 {[%clk 0:03:09]}
7. Qd2 {[%clk 0:02:22]}  Qc7 {[%clk 0:02:57]} 8. O-O-O {[%clk 0:02:17]}  b5 {[%clk 0:02:50]} 9. g3 {[%clk 0:01:48]}  Bb7 {[%clk 0:02:44]}
10. Bg2 {[%clk 0:01:42]}  e6 {[%clk 0:02:44]} 11. a3 {[%clk 0:01:33]}  Be7 {[%clk 0:02:39]} 12. Rhe1 {[%clk 0:01:08]}  Ne5 {[%clk 0:02:29]}
13. Bxf6 {[%clk 0:00:49]}  gxf6 {[%clk 0:02:11]} 14. Bf1 {[%clk 0:00:51]}  Rc8 {[%clk 0:02:06]} 15. f4 {[%clk 0:00:45]}  Nc4 {[%clk 0:02:07]}
16. Bxc4 {[%clk 0:00:41]}  Qxc4 {[%clk 0:02:07]} 17. Qd3 {[%clk 0:00:30]}  h5 {[%clk 0:02:02]} 18. Nb3 {[%clk 0:00:21]}  Qxd3 {[%clk 0:01:58]}
19. Rxd3 {[%clk 0:00:22]}  Rc7 {[%clk 0:01:48]} 20. Na5 {[%clk 0:00:22]}  Ba8 {[%clk 0:01:43]} 21. Red1 {[%clk 0:00:19]}  Kf8 {[%clk 0:01:26]}
22. Na2 {[%clk 0:00:20]}  Bxe4 {[%clk 0:01:24]} 23. Rc3 {[%clk 0:00:21]}  Rxc3 {[%clk 0:01:23]} 24. Nxc3 {[%clk 0:00:22]}  Bf3 {[%clk 0:01:14]}
25. Rd3 {[%clk 0:00:21]}  Bg4 {[%clk 0:01:16]} 26. Nc6 {[%clk 0:00:12]}  d5 {[%clk 0:01:15]} 27. Kd2 {[%clk 0:00:06]}  h4 {[%clk 0:01:12]}
28. Nb8 {[%clk 0:00:07]}  hxg3 {[%clk 0:01:11]} 29. Rxg3 {[%clk 0:00:06]}  Rxh2+ {[%clk 0:01:10]} 30. Ke3 {[%clk 0:00:03]}  Bc5+ {[%clk 0:01:11]}
31. Kd3 {[%clk 0:00:04]}  Bf5+ {[%clk 0:01:11]} 0-1

[Event "2026 Biel Blitz Open"]
[Site "Biel, CH"]
[Date "2026.07.19"]
[Round "1"]
[White "Aronyak Ghosh"]
[Black "Gautschi, Rudolf"]
[Result "1-0"]
[Board "7"]
[TimeControl "180+2"]
[WhiteFideId "25072846"]
[BlackFideId "1318489"]
[WhiteElo "2488"]
[BlackElo "1857"]
[WhiteTitle "IM"]
[WhiteClock "0:01:08"]
[BlackClock "0:00:07"]
[Variant "Standard"]
[EndDate "2026.07.19"]
[EndTime "11:47:32"]

1. d4 {[%clk 0:03:01]}  b6 {[%clk 0:03:04]} 2. c4 {[%clk 0:02:54]}  Bb7 {[%clk 0:03:05]} 3. Nc3 {[%clk 0:02:51]}  e6 {[%clk 0:03:07]}
4. a3 {[%clk 0:02:49]}  f5 {[%clk 0:03:07]} 5. Nf3 {[%clk 0:02:44]}  Nf6 {[%clk 0:03:08]} 6. g3 {[%clk 0:02:44]}  d6 {[%clk 0:03:08]}
7. Bg2 {[%clk 0:02:44]}  Be7 {[%clk 0:03:10]} 8. O-O {[%clk 0:02:44]}  O-O {[%clk 0:03:11]} 9. Re1 {[%clk 0:02:41]}  c5 {[%clk 0:03:03]}
10. d5 {[%clk 0:02:33]}  e5 {[%clk 0:03:01]} 11. e4 {[%clk 0:02:31]}  fxe4 {[%clk 0:02:35]} 12. Ng5 {[%clk 0:02:25]}  Bc8 {[%clk 0:02:30]}
13. Ncxe4 {[%clk 0:02:06]}  Bf5 {[%clk 0:02:22]} 14. Ne6 {[%clk 0:01:59]}  Bxe6 {[%clk 0:02:18]} 15. dxe6 {[%clk 0:01:58]}  Na6 {[%clk 0:01:38]}
16. Nxf6+ {[%clk 0:01:45]}  Rxf6 {[%clk 0:01:38]} 17. Bg5 {[%clk 0:01:40]}  Rb8 {[%clk 0:01:10]} 18. Bxf6 {[%clk 0:01:38]}  Bxf6 {[%clk 0:01:10]}
19. Qa4 {[%clk 0:01:26]}  Nc7 {[%clk 0:00:29]} 20. Bd5 {[%clk 0:01:21]}  Be7 {[%clk 0:00:26]} 21. Rad1 {[%clk 0:01:18]}  a5 {[%clk 0:00:23]}
22. Qc2 {[%clk 0:01:16]}  Ne8 {[%clk 0:00:04]} 23. b4 {[%clk 0:01:10]}  axb4 {[%clk 0:00:04]} 24. axb4 {[%clk 0:01:11]}  Nf6 {[%clk 0:00:06]}
25. bxc5 {[%clk 0:01:08]}  bxc5 {[%clk 0:00:07]} 26. Rb1 {[%clk 0:01:08]} 1-0

[Event "2026 Biel Blitz Open"]
[Site "Biel, CH"]
[Date "2026.07.19"]
[Round "1"]
[White "Strebel, Beda"]
[Black "Alexakis, Dimitris"]
[Result "0-1"]
[Board "8"]
[TimeControl "180+2"]
[WhiteFideId "1366432"]
[BlackFideId "4277023"]
[WhiteElo "1856"]
[BlackElo "2459"]
[BlackTitle "GM"]
[WhiteClock "0:00:03"]
[BlackClock "0:01:22"]
[Variant "Standard"]
[EndDate "2026.07.19"]
[EndTime "11:47:32"]

1. e4 {[%clk 0:03:03]}  c5 {[%clk 0:03:03]} 2. Nf3 {[%clk 0:03:04]}  e6 {[%clk 0:03:03]} 3. c3 {[%clk 0:03:04]}  Nf6 {[%clk 0:02:57]}
4. e5 {[%clk 0:03:05]}  Nd5 {[%clk 0:02:58]} 5. d4 {[%clk 0:03:06]}  d6 {[%clk 0:02:55]} 6. exd6 {[%clk 0:02:57]}  cxd4 {[%clk 0:02:54]}
7. Nxd4 {[%clk 0:02:51]}  Bxd6 {[%clk 0:02:52]} 8. Bd3 {[%clk 0:02:44]}  O-O {[%clk 0:02:50]} 9. O-O {[%clk 0:02:42]}  Nd7 {[%clk 0:02:48]}
10. Re1 {[%clk 0:02:18]}  a6 {[%clk 0:02:27]} 11. a4 {[%clk 0:02:11]}  N7f6 {[%clk 0:02:23]} 12. h3 {[%clk 0:01:52]}  Nf4 {[%clk 0:02:18]}
13. Bf1 {[%clk 0:01:30]}  Bc7 {[%clk 0:02:14]} 14. Qf3 {[%clk 0:01:12]}  Ng6 {[%clk 0:02:09]} 15. Bg5 {[%clk 0:01:04]}  h6 {[%clk 0:02:09]}
16. Bxf6 {[%clk 0:01:00]}  Qxf6 {[%clk 0:02:08]} 17. Qxf6 {[%clk 0:01:00]}  gxf6 {[%clk 0:02:02]} 18. Nd2 {[%clk 0:00:57]}  h5 {[%clk 0:01:59]}
19. Nc4 {[%clk 0:00:46]}  Bd7 {[%clk 0:01:58]} 20. a5 {[%clk 0:00:40]}  Rad8 {[%clk 0:01:57]} 21. Rad1 {[%clk 0:00:23]}  e5 {[%clk 0:01:50]}
22. Nf3 {[%clk 0:00:15]}  Ba4 {[%clk 0:01:51]} 23. Rxd8 {[%clk 0:00:10]}  Rxd8 {[%clk 0:01:51]} 24. g3 {[%clk 0:00:11]}  h4 {[%clk 0:01:44]}
25. Bg2 {[%clk 0:00:07]}  hxg3 {[%clk 0:01:43]} 26. fxg3 {[%clk 0:00:07]}  Bb5 {[%clk 0:01:29]} 27. Nfd2 {[%clk 0:00:04]}  Rd3 {[%clk 0:01:28]}
28. Kf2 {[%clk 0:00:04]}  e4 {[%clk 0:01:24]} 29. Bxe4 {[%clk 0:00:03]}  Bxg3+ {[%clk 0:01:22]} 0-1

[Event "2026 Biel Blitz Open"]
[Site "Biel, CH"]
[Date "2026.07.19"]
[Round "1"]
[White "Arjun Kalyan"]
[Black "King, Alexander"]
[Result "1-0"]
[Board "9"]
[TimeControl "180+2"]
[WhiteFideId "35018701"]
[BlackFideId "1352334"]
[WhiteElo "2451"]
[BlackElo "1854"]
[WhiteTitle "GM"]
[WhiteClock "0:01:07"]
[BlackClock "0:00:06"]
[Variant "Standard"]
[EndDate "2026.07.19"]
[EndTime "11:47:32"]

1. e4 {[%clk 0:03:03]}  c6 {[%clk 0:03:03]} 2. d4 {[%clk 0:03:03]}  d5 {[%clk 0:03:04]} 3. e5 {[%clk 0:03:04]}  Bf5 {[%clk 0:03:05]}
4. h4 {[%clk 0:03:05]}  a6 {[%clk 0:03:06]} 5. h5 {[%clk 0:03:04]}  h6 {[%clk 0:02:56]} 6. Bd3 {[%clk 0:03:05]}  Bxd3 {[%clk 0:02:53]}
7. Qxd3 {[%clk 0:03:05]}  e6 {[%clk 0:02:52]} 8. Ne2 {[%clk 0:03:01]}  c5 {[%clk 0:02:49]} 9. c3 {[%clk 0:03:01]}  Qb6 {[%clk 0:02:36]}
10. O-O {[%clk 0:02:59]}  Nc6 {[%clk 0:02:33]} 11. Nd2 {[%clk 0:02:55]}  Nge7 {[%clk 0:02:16]} 12. Nf3 {[%clk 0:02:51]}  Nf5 {[%clk 0:01:57]}
13. a3 {[%clk 0:02:31]}  Be7 {[%clk 0:01:47]} 14. b4 {[%clk 0:02:31]}  cxd4 {[%clk 0:01:26]} 15. cxd4 {[%clk 0:02:30]}  O-O {[%clk 0:01:14]}
16. g4 {[%clk 0:02:07]}  Nh4 {[%clk 0:01:12]} 17. Nxh4 {[%clk 0:02:08]}  Bxh4 {[%clk 0:01:12]} 18. Be3 {[%clk 0:02:05]}  f5 {[%clk 0:00:49]}
19. f3 {[%clk 0:01:57]}  Rf7 {[%clk 0:00:35]} 20. Nf4 {[%clk 0:01:58]}  Re8 {[%clk 0:00:26]} 21. Ng6 {[%clk 0:01:47]}  Bd8 {[%clk 0:00:19]}
22. Ra2 {[%clk 0:01:32]}  Ne7 {[%clk 0:00:20]} 23. Nf4 {[%clk 0:01:21]}  Ref8 {[%clk 0:00:16]} 24. Rg2 {[%clk 0:01:21]}  Kh7 {[%clk 0:00:09]}
25. Kh2 {[%clk 0:01:15]}  Kg8 {[%clk 0:00:08]} 26. g5 {[%clk 0:01:06]}  Kh7 {[%clk 0:00:06]} 27. g6+ {[%clk 0:01:07]}  Kg8 {[%clk 0:00:05]}
28. gxf7+ {[%clk 0:01:07]}  Rxf7 {[%clk 0:00:06]} 29. Rfg1 {[%clk 0:01:07]} 1-0

[Event "2026 Biel Blitz Open"]
[Site "Biel, CH"]
[Date "2026.07.19"]
[Round "1"]
[White "Freuler, Roman"]
[Black "Elmi, Saad Abobaker"]
[Result "0-1"]
[Board "10"]
[TimeControl "180+2"]
[WhiteFideId "1304283"]
[BlackFideId "1553259"]
[WhiteElo "1852"]
[BlackElo "2409"]
[BlackTitle "IM"]
[WhiteClock "0:00:05"]
[BlackClock "0:00:45"]
[Variant "Standard"]
[EndDate "2026.07.19"]
[EndTime "11:47:32"]

1. e4 {[%clk 0:03:03]}  c5 {[%clk 0:03:04]} 2. c4 {[%clk 0:03:04]}  Nc6 {[%clk 0:03:05]} 3. Nc3 {[%clk 0:03:05]}  g6 {[%clk 0:03:06]}
4. g3 {[%clk 0:03:06]}  Bg7 {[%clk 0:03:07]} 5. Bg2 {[%clk 0:03:07]}  d6 {[%clk 0:03:09]} 6. a3 {[%clk 0:03:04]}  Nf6 {[%clk 0:03:06]}
7. Nge2 {[%clk 0:02:52]}  O-O {[%clk 0:03:03]} 8. O-O {[%clk 0:02:40]}  a6 {[%clk 0:03:00]} 9. Rb1 {[%clk 0:02:41]}  Nd4 {[%clk 0:02:52]}
10. d3 {[%clk 0:02:29]}  Nd7 {[%clk 0:02:39]} 11. Nxd4 {[%clk 0:01:56]}  cxd4 {[%clk 0:02:36]} 12. Ne2 {[%clk 0:01:48]}  b5 {[%clk 0:02:35]}
13. cxb5 {[%clk 0:01:15]}  axb5 {[%clk 0:02:35]} 14. e5 {[%clk 0:01:13]}  Rb8 {[%clk 0:02:27]} 15. exd6 {[%clk 0:01:00]}  e5 {[%clk 0:02:28]}
16. Bd2 {[%clk 0:00:54]}  Nc5 {[%clk 0:02:18]} 17. Bb4 {[%clk 0:00:53]}  Na6 {[%clk 0:02:14]} 18. Qb3 {[%clk 0:00:49]}  Be6 {[%clk 0:02:13]}
19. Qc2 {[%clk 0:00:45]}  Nxb4 {[%clk 0:02:09]} 20. axb4 {[%clk 0:00:46]}  Qxd6 {[%clk 0:02:10]} 21. Qd2 {[%clk 0:00:46]}  Rfc8 {[%clk 0:02:07]}
22. Rfc1 {[%clk 0:00:44]}  Bf8 {[%clk 0:02:08]} 23. Rc5 {[%clk 0:00:32]}  Rxc5 {[%clk 0:02:07]} 24. bxc5 {[%clk 0:00:33]}  Qxc5 {[%clk 0:02:08]}
25. Rc1 {[%clk 0:00:34]}  Qb4 {[%clk 0:01:57]} 26. Qxb4 {[%clk 0:00:33]}  Bxb4 {[%clk 0:01:58]} 27. Rc7 {[%clk 0:00:26]}  Kf8 {[%clk 0:01:33]}
28. h3 {[%clk 0:00:25]}  h5 {[%clk 0:01:28]} 29. Bf3 {[%clk 0:00:20]}  Bd6 {[%clk 0:01:18]} 30. Rc2 {[%clk 0:00:20]}  Bf5 {[%clk 0:01:15]}
31. Nc1 {[%clk 0:00:20]}  Bxh3 {[%clk 0:01:14]} 32. Nb3 {[%clk 0:00:15]}  Bf5 {[%clk 0:01:08]} 33. Rc6 {[%clk 0:00:15]}  Ke7 {[%clk 0:01:05]}
34. Be4 {[%clk 0:00:13]}  Bxe4 {[%clk 0:00:58]} 35. dxe4 {[%clk 0:00:14]}  Kd7 {[%clk 0:00:56]} 36. Rc1 {[%clk 0:00:13]}  Rc8 {[%clk 0:00:53]}
37. Ra1 {[%clk 0:00:06]}  Rc2 {[%clk 0:00:50]} 38. Ra7+ {[%clk 0:00:05]}  Ke6 {[%clk 0:00:48]} 39. Rb7 {[%clk 0:00:05]}  b4 {[%clk 0:00:49]}
40. Na5 {[%clk 0:00:05]}  d3 {[%clk 0:00:45]} 0-1